Cogmind - Beta 17 @@@ ROGUE MODE // 2026.08.06 @ 16:56:11 Player: Stevano Result: Destroyed by Y-45 Defender with Beam Rifle Performance ------------- Evolutions (2) 1000 Regions Visited (5) 1000 Robots Destroyed (56) 280 Value Destroyed (2144) 2144 Prototype IDs (0) 0 Alien Tech Used (0) 0 Bonus (0) 0 TOTAL SCORE: 4424 Bonus ------- None Cogmind --------- Core Integrity 0/550 Matter 270/300 Energy 12/100 System Corruption 13% Temperature Warning (332) Movement Core (900) Ox17 Location -8/Storage Parts ------- > --- POWER (1) -------- (None) > --- PROPULSION (4) --- (None) > --- UTILITY (4) ------ Large Storage Unit Large Storage Unit > --- WEAPON (2) ------- Heavy Particle Cannon Heavy Particle Cannon > --- INVENTORY (15) --- Targeting Computer Melee Analysis Suite Light Assault Rifle Peak State ------------ > --- POWER ------------ Light Nuclear Core > --- PROPULSION ------- Improved Aluminum Leg Carbon-fiber Leg Carbon-fiber Leg > --- UTILITY ---------- Heat Sink Large Storage Unit Large Matter Pod Improved Shield Generator > --- WEAPON ----------- Particle Gun Field Laser > --- INVENTORY -------- Ion Engine Light Nuclear Core Large Storage Unit Targeting Computer Melee Analysis Suite Improved Shield Generator Improved Shield Generator Beam Rifle Heavy Particle Cannon Heavy Particle Cannon Light Assault Rifle EMP Blaster [Rating: 25] Favorites ----------- Power Reinforced Ion Engine Engine Reinforced Ion Engine Power Core Light Nuclear Core Propulsion Aluminum Leg Leg Aluminum Leg Utility Large Storage Unit Device Heat Sink Storage Large Storage Unit Protection Light Armor Plating Weapon Particle Gun Energy Gun Particle Gun Energy Cannon Beam Cannon Ballistic Gun Light Assault Rifle Launcher EMP Blaster Build | -11 -10 -9 -9 -8 -8 ------- Run | Yrd Mat Mat Min Mat Sto Slots Evolved 4 | . . 2 . 2 . Power . | . . . . . . Propulsion 2 | . . 2 . . . Utility 2 | . . . . 2 . Weapon . | . . . . . . Parts Attached 60 | 5 13 15 1 18 8 Power 7 | 1 1 2 . 1 2 Engine 5 | 1 1 2 . . 1 Core 2 | . . . . 1 1 Reactor . | . . . . . . Propulsion 19 | 2 2 6 . 8 1 Treads . | . . . . . . Leg 19 | 2 2 6 . 8 1 Wheel . | . . . . . . Hover . | . . . . . . Flight . | . . . . . . Utility 14 | . 5 2 . 5 2 Device 8 | . 3 . . 3 2 Storage 3 | . 2 1 . . . Processor . | . . . . . . Hackware . | . . . . . . Protection 3 | . . 1 . 2 . Artifact . | . . . . . . Weapon 20 | 2 5 5 1 4 3 Energy Gun 12 | 2 3 2 . 4 1 Energy Cannon 3 | . . 1 . . 2 Ballistic Gun 4 | . 2 1 1 . . Ballistic Cannon . | . . . . . . Launcher 1 | . . 1 . . . Special Weapon . | . . . . . . Impact Weapon . | . . . . . . Slashing Weapon . | . . . . . . Piercing Weapon . | . . . . . . Special Melee Weapon . | . . . . . . Unidentified Prototypes . | . . . . . . Parts Lost 52 | . 8 11 4 14 15 Power 7 | . 1 2 . 1 3 Propulsion 17 | . 2 4 3 5 3 Utility 11 | . 1 1 . 4 5 Weapon 17 | . 4 4 1 4 4 Highest Loss Streak 6 | . 5 3 3 4 6 To Critical Strikes 2 | . . . . 2 . Average Backups 10 | . 4 9 14 14 9 Power 1 | . . . 1 1 1 Propulsion . | . . . . . . Utility 4 | . 1 6 9 5 3 Weapon 3 | . 1 1 4 6 4 Tool/Special . | . . . . . . Unused Backups 6 | . . 1 . 2 3 Power . | . . . . . . Propulsion 1 | . . 1 . . . Utility 2 | . . . . . 2 Weapon 3 | . . . . 2 1 Tool/Special . | . . . . . . Average Slot Usage (%) 80 | . 90 78 70 80 61 Engine 9 | . 13 10 11 8 . Leg 21 | . 26 25 16 18 12 Device 9 | . 13 9 . 9 11 Storage 12 | . 9 11 11 14 13 Protection 5 | . . . 11 12 . Energy Gun 12 | . 17 15 3 8 13 Ballistic Gun 7 | . 9 2 17 8 . Peak Build Rating 25 | 5 9 14 14 25 25 Average Rating 11 | 3 6 10 11 16 17 On Entrance 10 | . 5 9 14 9 25 Avg Prop Armor Cover (%) . | . . . . . . Naked Turns . | . . . . . . Heaviest Build 52 | 7 32 38 37 43 52 Greatest Support 53 | 20 20 46 36 53 43 Greatest Overweight (x) 17 | . 3 3 12 14 17 Average Overweight (x) 1 | . . . 2 2 1 Largest Inventory Capacity 15 | 5 15 15 15 15 15 Average Capacity 13 | 5 7 15 15 15 15 Most Carried 15 | 3 8 15 15 15 12 Average Carried 10 | . 4 9 14 14 9 Final Capacity 15 | 5 15 15 15 15 15 Final Carried 15 | 1 8 14 15 12 3 Class Distribution -------------------- 81% | Scavenger-Mutant 18% | Mutant Dominant Class ---------------- Scavenger-Mutant | -10/Materials Scavenger-Mutant | -9/Materials Scavenger-Mutant | -9/Mines Scavenger-Mutant | -8/Materials Mutant | -8/Storage Resources | -11 -10 -9 -9 -8 -8 ----------- Run | Yrd Mat Mat Min Mat Sto Matter Collected 1102 | 250 274 239 52 235 52 Remotely . | . . . . . . Salvage Created 2337 | 36 421 674 73 853 280 Parts 115 | . 27 32 14 27 15 Haulers Intercepted . | . . . . . . Recyclers Shooed . | . . . . . . Parts Field Recycled . | . . . . . . Retrieved Matter . | . . . . . . Parts Self-Destructed . | . . . . . . Prevented . | . . . . . . Parts Restored . | . . . . . . Kills | -11 -10 -9 -9 -8 -8 ------- Run | Yrd Mat Mat Min Mat Sto Combat Hostiles Destroyed 56 | 1 11 15 6 17 6 Guns 49 | 1 11 12 6 15 4 AOE 4 | . . 3 . . 1 Classes Destroyed 5 | 1 1 2 . 1 . Swarmer 9 | . 3 . 6 . . Grunt 33 | 1 8 10 . 11 3 Brawler 2 | . . 1 . 1 . Sentry 10 | . . 4 . 3 3 Hunter 2 | . . . . 2 . Best Kill Streak 5 | 1 3 4 3 5 2 Combat Bots Only 5 | 1 3 4 3 5 2 Max Kills in Single Turn 3 | 1 2 3 1 1 1 Gunslinging 1 | . 1 . . . . Exploded 3 | . . 3 . . 1 Melee . | . . . . . . Uniques/NPCs Destroyed . | . . . . . . Combat | -11 -10 -9 -9 -8 -8 -------- Run | Yrd Mat Mat Min Mat Sto Hostile Shots Fired 497 | 2 88 106 30 142 129 Missed 121 | 1 13 19 9 39 40 Hits 376 | 1 75 87 21 103 89 Melee 9 | . . 6 . 3 . Projectile 367 | 1 75 81 21 100 89 Critical Strikes 14 | . 2 5 . 3 4 Damage Taken 5132 | 10 932 1202 173 1497 1318 Core 1013 | . 243 165 43 131 431 Absorbed by Shields 344 | . . . . 62 282 Core Remaining (%) 50 | 100 2 . 48 . . Volleys Fired 211 | 2 55 48 11 72 23 Largest 2 | 2 2 2 2 2 2 Hottest 150 | 90 105 130 63 130 150 Shots Fired 353 | 4 91 77 19 127 35 Gun 339 | 4 91 68 19 127 30 Cannon 12 | . . 8 . . 4 Launcher 2 | . . 1 . . 1 Special . | . . . . . . Kinetic 104 | . 43 6 18 37 . Thermal 232 | 2 35 70 1 90 34 Explosive . | . . . . . . Electromagnetic 17 | 2 13 1 . . 1 Robot Hit Streak 28 | 2 10 16 5 28 23 Robot Miss Streak 4 | 1 3 2 4 3 1 Penetration Max . | . . . . . . Secondary Targets 4 | . 2 1 . 1 . Max Gunslinging Chain 1 | . 1 1 . 1 . Shots Hit Robots 268 | 2 62 61 11 102 30 Core Hits 106 | 2 24 24 7 35 14 Critical Kills 1 | . 1 . . . . Critical Parts Destroyed . | . . . . . . Critical Strikes 12 | . 2 3 . 5 2 Burn 10 | . . 3 . 5 2 Destroy 1 | . 1 . . . . Corrupt 1 | . 1 . . . . Melee Attacks . | . . . . . . Impact . | . . . . . . Slashing . | . . . . . . Piercing . | . . . . . . Sneak Attacks . | . . . . . . Combat Hostiles . | . . . . . . Follow-up Attacks . | . . . . . . Damage Inflicted 3991 | 25 628 1039 156 1461 682 Guns 3428 | 25 628 784 156 1461 374 Cannons 171 | . . 71 . . 100 Explosions 392 | . . 184 . . 208 Melee . | . . . . . . Ramming . | . . . . . . Kinetic 783 | . 267 70 145 301 . Thermal 2730 | 12 249 824 11 1160 474 Explosive 270 | . . 74 . . 196 Electromagnetic 208 | 13 112 71 . . 12 Impact . | . . . . . . Slashing . | . . . . . . Piercing . | . . . . . . Highest Corruption 13 | . . 6 6 5 13 Average Corruption 6 | . . 5 6 5 8 Corruption Purged . | . . . . . . Corruption Blocked . | . . . . . . Effects 32 | . . 11 11 1 9 Message Errors 9 | . . 2 3 . 4 Matter Fused 6 | . . 3 1 . 2 Heat Flow Errors 5 | . . . 4 . 1 Energy Discharges 2 | . . 2 . . . Parts Rejected 2 | . . 1 . . 1 Data Loss (minor) 3 | . . 2 . 1 . Data Loss (major) 1 | . . 1 . . . Misfires 3 | . . . 2 . 1 Alerts 1 | . . . 1 . . Overload Shots . | . . . . . . Overflow Damage . | . . . . . . Projectiles . | . . . . . . Explosions . | . . . . . . Melee . | . . . . . . Knockbacks . | . . . . . . Impact . | . . . . . . Kinetic . | . . . . . . Secondary . | . . . . . . Self-Inflicted Damage 118 | . . 4 . . 114 Shots 3 | . . 1 . . 2 Rammed . | . . . . . . Targets Rammed . | . . . . . . Kicked . | . . . . . . Crushed . | . . . . . . Highest Temperature 549 | 66 399 549 275 294 354 Average Temperature 120 | 36 164 157 109 75 75 Received Heat Transfer 1983 | 6 522 474 . 537 444 Effects 5 | . 1 3 . . 1 Energy Bleed 1 | . . 1 . . . Interference 2 | . 1 1 . . . Matter Decay 1 | . . 1 . . . Damage (minor) 1 | . . . . . 1 Siege Activations . | . . . . . . Martial Activations . | . . . . . . Shielding Activations . | . . . . . . Robots Disrupted . | . . . . . . Combat Hostiles . | . . . . . . Robots Corrupted . | . . . . . . Combat Hostiles . | . . . . . . Parts Fried . | . . . . . . Impact Corruptions . | . . . . . . Robots Melted 3 | . . . . 2 1 Combat Hostiles 3 | . . . . 2 1 Parts Melted 29 | . 1 10 . 16 2 Heat Transferred 7200 | 37 656 2153 25 3145 1184 Parts Sabotaged . | . . . . . . Parts Stolen . | . . . . . . Parts Stripped . | . . . . . . Power Chain Reactions 1 | . . 1 . . . Alert | -11 -10 -9 -9 -8 -8 ------- Run | Yrd Mat Mat Min Mat Sto Maximum Alert Level . | . . . . . . Low Security (%) 100 | 100 100 100 100 100 100 Level 1 . | . . . . . . Level 2 . | . . . . . . Level 3 . | . . . . . . Level 4 . | . . . . . . Level 5 . | . . . . . . High Security . | . . . . . . Max Security . | . . . . . . Peak Influence 196 | 20 90 144 70 132 196 Initial 53 | . 6 . 31 15 53 Average 37 | 1 21 46 21 30 127 Influence Increases 1681 | 20 316 440 130 439 336 Destroy 0b10 Robot/C 1120 | 20 220 300 120 340 120 Destroy Leader 270 | . 50 90 10 80 40 Successful Hack 22 | . 16 6 . . . Disable Machine 75 | . . 15 . . 60 Destroy Structure 59 | . . 14 . 4 41 Lose Combat Pursuer 135 | . 30 15 . 15 75 Influence Decreases 1562 | 10 326 358 172 351 345 Entered New Map 155 | . 4 . 51 25 75 Time Decay 1002 | 10 262 264 121 225 120 Lost Part 405 | . 60 94 . 101 150 Squads Dispatched 6 | . 2 2 . 2 . Investigation 1 | . 1 . . . . Extermination . | . . . . . . Reinforcement 5 | . 1 2 . 2 . Assault . | . . . . . . Garrison . | . . . . . . Intercept . | . . . . . . Searches Triggered . | . . . . . . Construction Impeded . | . . . . . . Haulers Reinforced . | . . . . . . Active Scanning Responses . | . . . . . . Cargo Convoy Interrupts . | . . . . . . Stealth | -11 -10 -9 -9 -8 -8 --------- Run | Yrd Mat Mat Min Mat Sto Distress Signals 2 | . . 1 . 1 . Communications Jammed . | . . . . . . Distress Signals . | . . . . . . Times Spotted 81 | 1 18 23 7 22 10 Peak Tracking Total 8 | 1 5 5 4 8 7 Tactical Retreats 5 | . 1 1 . 1 2 Traps | -11 -10 -9 -9 -8 -8 ------- Run | Yrd Mat Mat Min Mat Sto Traps Triggered 4 | . 2 . . . 2 Indirectly . | . . . . . . Trap Hack Attempts . | . . . . . . Triggered . | . . . . . . Disarmed . | . . . . . . Reprogrammed . | . . . . . . Reused . | . . . . . . Traps Extracted . | . . . . . . Installed . | . . . . . . Triggered . | . . . . . . Machines | -11 -10 -9 -9 -8 -8 ---------- Run | Yrd Mat Mat Min Mat Sto Machines Disabled 5 | . . 1 . . 4 Max in Single Turn 2 | . . 1 . . 2 Machines Repaired . | . . . . . . Machines Dismantled . | . . . . . . Machines Sabotaged . | . . . . . . Overloaded Fab Kills . | . . . . . . Hacking | -11 -10 -9 -9 -8 -8 --------- Run | Yrd Mat Mat Min Mat Sto Machines Accessed 8 | . 4 2 . 2 . Terminals 4 | . 3 1 . . . Fabricators . | . . . . . . Repair Stations . | . . . . . . Recycling Units 1 | . 1 . . . . Scanalyzers 3 | . . 1 . 2 . Garrison Access . | . . . . . . Total Hacks 28 | . 10 9 . 9 . Successful 24 | . 10 8 . 6 . Failed 2 | . . . . 2 . Catastrophic . | . . . . . . Database Lockouts 2 | . . 1 . 1 . Manual . | . . . . . . Terminals 11 | . 9 2 . . . Fabricators . | . . . . . . Repair Stations . | . . . . . . Recycling Units 1 | . 1 . . . . Scanalyzers 16 | . . 7 . 9 . Garrison Access . | . . . . . . Terminal Hacks 11 | . 9 2 . . . Record 8 | . 6 2 . . . Alert Level 2 | . 2 . . . . Zone Layout 1 | . 1 . . . . Fabricator Hacks . | . . . . . . Repair Station Hacks . | . . . . . . Recycling Unit Hacks 1 | . 1 . . . . Report Inventory 1 | . 1 . . . . Scanalyzer 12 | . . 6 . 6 . Insert Component 1 | . . 1 . . . Analyze 1 | . . 1 . . . Retrieve Study 10 | . . 4 . 6 . Garrison Access Hacks . | . . . . . . Unauthorized Hacks . | . . . . . . Terminals . | . . . . . . Fabricators . | . . . . . . Repair Stations . | . . . . . . Recycling Units . | . . . . . . Scanalyzers . | . . . . . . Garrison Access . | . . . . . . Data Cores Recovered . | . . . . . . Used . | . . . . . . Hacking Detections 4 | . 2 1 . 1 . Full Trace Events . | . . . . . . Feedback Events . | . . . . . . Feedback Blocked . | . . . . . . Robot Schematics Acquired . | . . . . . . Robots Built . | . . . . . . Authchips . | . . . . . . Time . | . . . . . . Total Robot Build Rating . | . . . . . . Part Schematics Acquired 1 | . . 1 . . . Parts Built . | . . . . . . Authchips . | . . . . . . Time . | . . . . . . Total Part Build Rating . | . . . . . . Part Studies Acquired 10 | . . 4 . 6 . Parts Repaired . | . . . . . . Time . | . . . . . . Parts Recycled . | . . . . . . Recycled Matter . | . . . . . . Retrieved Matter . | . . . . . . Retrieved Components . | . . . . . . Parts Scanalyzed 1 | . . 1 . . . Part Schematics Acquired 1 | . . 1 . . . Parts Damaged . | . . . . . . Bothacking | -11 -10 -9 -9 -8 -8 ------------ Run | Yrd Mat Mat Min Mat Sto Used RIF Installer . | . . . . . . Robots Hacked . | . . . . . . Non-combat . | . . . . . . Combat . | . . . . . . Robot Hacks Applied . | . . . . . . Relay Couplers Released . | . . . . . . Fabnet Peak Effective % . | . . . . . . Robots Rewired . | . . . . . . Allies Hacked . | . . . . . . Hacks Repelled . | . . . . . . Allies | -11 -10 -9 -9 -8 -8 -------- Run | Yrd Mat Mat Min Mat Sto Total Allies . | . . . . . . Largest Group . | . . . . . . Highest-Rated Group . | . . . . . . Highest-Rated Ally . | . . . . . . Total Orders . | . . . . . . Ally Attacks . | . . . . . . Total Damage . | . . . . . . Kills . | . . . . . . Allies Corrupted . | . . . . . . Allies Melted . | . . . . . . Intel | -11 -10 -9 -9 -8 -8 ------- Run | Yrd Mat Mat Min Mat Sto Active Infowar (turns) 1296 | . 491 805 . . . Terrain 1296 | . 491 805 . . . Robot Analysis Total . | . . . . . . Derelict Logs Recovered . | . . . . . . Drone Launches . | . . . . . . Drone Recoveries . | . . . . . . Exploration | -11 -10 -9 -9 -8 -8 ------------- Run | Yrd Mat Mat Min Mat Sto Turns Passed 3970 | 85 924 940 354 1415 252 Spaces Moved 1674 | 66 526 397 115 484 86 Core 98 | 15 11 . 10 55 7 Treads . | . . . . . . Legs 1576 | 51 515 397 105 429 79 Wheels . | . . . . . . Hover . | . . . . . . Flight . | . . . . . . Fastest Speed 50 | 50 100 120 190 118 120 Average Speed 186 | 104 139 181 287 225 212 Slowest Speed 900 | 120 200 330 650 750 900 Overloaded Moves . | . . . . . . Propulsion Burnouts . | . . . . . . Robots Hopped . | . . . . . . Potential Cave-ins . | . . . . . . Cave-ins Triggered 1 | . . . . . 1 Exploration Rate (%) 30 | 6 55 27 43 33 20 Regions Visited 5 Branch Regions 2 Pre-discovered Areas . | . . . . . . Known Exits Taken . | . . . . . . Unknown Exits Taken 5 | 1 1 1 1 1 . Scrap Searched 1 | . . . 1 . . Spaces Dug . | . . . . . . Terrain Destroyed 65 | . . 13 . . 52 Melee . | . . . . . . Projectile . | . . . . . . AOE 65 | . . 13 . . 52 Terrain Rammed . | . . . . . . Walls Destroyed . | . . . . . . Machines Disabled . | . . . . . . Actions | -11 -10 -9 -9 -8 -8 --------- Run | Yrd Mat Mat Min Mat Sto Total 2192 | 78 635 541 127 682 129 Wait 177 | . 23 57 . 88 9 Move 1669 | 65 525 396 114 483 86 Hop . | . . . . . . Pick Up 63 | 6 18 21 1 16 1 Fast Attach 5 | . 1 . 1 3 . Attach 56 | 5 11 14 . 16 10 Detach . | . . . . . . Swap 6 | . 2 3 . 1 . Drop 5 | . . 2 . 3 . Fire 211 | 2 55 48 11 72 23 Melee . | . . . . . . Ram . | . . . . . . Kick . | . . . . . . Crush . | . . . . . . Escape Stasis . | . . . . . . Rewire . | . . . . . . Trap . | . . . . . . Miscellaneous . | . . . . . . Route ------- -11/Scrapyard -10/Materials (discovered 4 exits: *Mat x2 / [*Min] / [*Sub]) -9/Materials -9/Mines (discovered 2 exits: *Mat / [*Zio]) -8/Materials -8/Storage History --------- Turn | Location | Event 2 | -11/Scrapyard | Met Revision 17 68 | -11/Scrapyard | Discovered new exit (range 8) 86 | -11/Scrapyard | Entered Materials 217 | -10/Materials | Discovered new exit (range 16) 300 | -10/Materials | Build established: Mutant 307 | -10/Materials | Core integrity fell below 50% 336 | -10/Materials | Lost 5 parts (1p2n2w) 389 | -10/Materials | Discovered new exit (range 11) 558 | -10/Materials | Discovered new exit (range 10) 635 | -10/Materials | Build established: Scavenger-Mutant 717 | -10/Materials | Core integrity fell below 20% 808 | -10/Materials | Discovered new exit (range 13) 1010 | -10/Materials | Entered another Materials area 1010 | -9/Materials | Evolved 2 slots: Propulsion x2 1250 | -9/Materials | Lost 3 parts (1p2n) 1661 | -9/Materials | Central database locked down 1926 | -9/Materials | Discovered new exit (range 12) 1950 | -9/Materials | Entered Mines 1951 | -9/Mines | A Derelict revealed a hidden shortcut to a safe place 2072 | -9/Mines | Core integrity fell below 50% 2098 | -9/Mines | Lost 3 parts (2n1w) 2258 | -9/Mines | Discovered new exit (range 8) 2304 | -9/Mines | Entered Materials 2304 | -8/Materials | Evolved 2 slots: Utility x2 2957 | -8/Materials | Central database locked down 3019 | -8/Materials | Lost 4 parts (2u2w) 3622 | -8/Materials | Discovered new exit (range 16) 3683 | -8/Materials | Lost 4 parts (1p1n1u1w) 3719 | -8/Materials | Entered Storage 3854 | -8/Storage | Lost 5 parts (2n2u1w) 3870 | -8/Storage | Core integrity fell below 50% 3917 | -8/Storage | Lost 4 parts (1p2u1w) 3927 | -8/Storage | Build established: Mutant 3954 | -8/Storage | Core integrity fell below 20% 3961 | -8/Storage | Crushed by falling debris 3961 | -8/Storage | System corruption reached 10% 3971 | -8/Storage | Destroyed by Y-45 Defender with Beam Rifle Last Messages --------------- 03949_ Compression Vault explodes. 03949_ Terminal disabled. 03949_ Door malfunctions. 03950_ Critical hit (Burn: +37). 03955_ U-05 Engineer builds a Wall. 03956_ Beam Rifle destroyed. 03956_ Ion Engine+ destroyed. 03958_ The unstable cave ceiling collapses. 03960_ U-05 Engineer builds a Wall. 03961_ The unstable cave ceiling collapses. 03961_ Crushed by falling debris. [Achievement: Unlikely Earthworm] 03961_ EMP Blaster+ destroyed. 03961_ System corrupted by crushing effect (+5). 03961_ U-05 Engineer builds a Wall. 03962_ System corrupted: Heat flow error (+266). 03965_ U-05 Engineer builds a Wall. 03969_ U-05 Engineer builds a Door. 03971_ Overheating: Lrg. Storage Unit damaged (-64). 03971_ The unstable cave ceiling collapses. Map ----- +----------------------------------------------------+ | | | | | | | | | | | | | | | | | | | ???????????????????????????????????????????????? | | ???????????????????????????????????????????????? | | ???????????????????????????????????????????????? | | ???????????????????????????????????????????????? | | ???????????????????#???????????????????????????? | | ??????????????????? ??????????????????????????? | | ???????????????????? ??????????????????????????? | | ???????????????????? ?????????????????????????? | | ????????????????????? ?????????????????????????? | | ?????????????????????# ????????????????????????? | | ?????????????????????# ????????????????????????? | | ?????????????????????# ???????????????????????? | | ?????????????????????# ???????????""""????????? | | ?????????????????????# ########?## #????????? | | ?????????????????????# # # ###T #????????? | | ?????????????????????# # # # # ########## | | ?????????????????????# @! = Y #= # | | ?????????????????????# =%= + [+% """ # | | ?????????????????????# *= # #= """ # | | ?????????????????????# Y # # """ # | | ?????????????????????# # # # | | ?????????????????????# ### # #""" # | | ?????????????????????# # #### ### #"Y # | | ?????????????????????# # ? ##^ #""" = # | | ?????????????????????# u# ? """## ^/%=[ # | | ?????????????????????# # ? """## ##!####### | | ?????????????????????# # ?? ""??# ####?????? | | ?????????????????????# + ???# #????????? | | ?????????????????????# ?# ""??# #????????? | | ?????????????????????###?# [ """## ##???????? | | ?????????????????????????# """# #???????? | | ?????????????????????????+ + #???????? | | ????????????????????????????####### #???????? | | ??????????????????????????????????# #???????? | | ???????????????????????????????#####/####??????? | | ???????????????????????????????# #??????? | | ???????????????????????????????# """ #??????? | | ???????????????????????????????# """ #??????? | | ???????????????????????????????# """ #??????? | | ???????????????????????????????# #??????? | | ???????????????????????????????# """ #??????? | +----------------------------------------------------+ Best States ------------- Heat Dissipation 51 Energy Generation 15 Energy Capacity 265 Matter Stores 450 Matter Capacity 450 Sight Range 16 Terrain Scan Range 14 Terrain Scan Density 10 Armor Coverage 450 Evasion (%) 55 Item Schematics ----------------- Lrg. Matter Pod | -9/Materials | Scanalyzed Robot Schematics ------------------ None Fabricated ------------ Nothing Repaired ---------- Nothing Studied --------- Particle Gun | -9/Materials | Hacked Ion Engine | -9/Materials | Hacked Rnf. Ion Engine | -9/Materials | Hacked EMP Blaster | -9/Materials | Hacked Hvy. Particle Cannon | -8/Materials | Hacked Field Laser | -8/Materials | Hacked Hvy. Assault Rifle | -8/Materials | Hacked Lgt. Assault Rifle | -8/Materials | Hacked Titanium Leg | -8/Materials | Hacked Lgt. Nuclear Core | -8/Materials | Hacked Alien Tech Used ----------------- None Achievements -------------- Close Call Item+ Unlikely Earthworm Well Done Challenges ------------ None Game ------ Seed SurgeBottomlessLattice Manual? 0 Play Time 00:39:31 Cumulative 2.0 hours Start 2026.08.06 @ 16:15:49 End 2026.08.06 @ 16:56:11 Sessions 1 Manual Loads 0 Difficulty Rogue Special Mode None Game No. 3 Rogue 3 Adventurer 0 Explorer 0 Win Type - Total 0 Types 0/0/0/0/0/0/0/0/0/0 Lore% 2 Gallery% 3 Achievement% 3 Wizard Run 0 Options --------- Layout 0 ASCII 0 Keyboard 0 Movement Mouse Keybinds 0 Fullscreen 2 Font 18/SmallcapsGlow Map View 76x50 Zoom Use 0% Tactical HUD 1 Map Filters NONE Filters NONE Steam 1 RUN: 168bdcb2-90b1-4554-9005-2b96d461c606